{"text_format":"3","workbook":"xlsx","n_sheets":6,"sheets":["COVER","SUMMARY","PRELIMINARIES","ESKOM AIR-CON SCHEDULE","AIRCON BOQ","NEC3 CONTRACT"],"not_rendered":{"images":40,"defined_names":13},"read":"whole","date_system":"1900"}

{"sheet":"COVER","index":0,"n_rows":40,"n_cols":9,"rows_kept":40,"merged":[[2,8,2,11],[17,1,17,11]]}
[]
[]
[{"$nulls":8},"TRANSMISSION FACILITIES"]
{"$rows_empty":14}
[null,"*Where the word \"Bill Of Quantities\" is used it shall mean Price Schedule"]
[]
[]
[null,"CONTRACT NUMBER"]
[]
[]
[null,"CONTRACTOR",{"$nulls":6},":"]
[]
[]
[null,"CONTRACT AMOUNT ",{"$nulls":6},":Not applicable"]
[null,"(Excluding VAT)",{"$nulls":6},"Contract is rate based"]
[]
[]
[null,"AUTHORISED SIGNATORY NAME",{"$nulls":6},":"]
[]
[]
[null,"DESIGNATION",{"$nulls":6},": "]
[]
[]
[null,"AUTHORISED SIGNATURE",{"$nulls":6},": "]
[]
[]
[null,"DATE"]

{"sheet":"SUMMARY","index":1,"n_rows":16,"n_cols":9,"rows_kept":16,"merged":[[0,0,0,8],[8,7,8,8],[10,7,10,8]]}
["TABLE OF CONTENTS"]
[]
[null,"Contract Data"]
[]
[null,"Pricelist"]
[]
[null,"CORE TECHNICAL SERVICES"]
[]
[null,"Section 1",null,"Preliminaries and General",{"$nulls":3},{"$f":"PRELIMINARIES!F11","v":0}]
[]
[null,"Section 2",null,"Airconditioning ",{"$nulls":3},{"$f":"'AIRCON BOQ'!F480","v":0}]
[]
[]
[null,"Final Summary",{"$nulls":6},{"$f":"SUM(H9:I11)","v":0}]
[]
[null,"NEC Term s Services Short Contract ",{"$nulls":5},"(Attachment)"]

{"sheet":"PRELIMINARIES","index":2,"n_rows":11,"n_cols":6,"rows_kept":11}
["ITEM NO","DESCRIPTION","UNIT","Expected Quantity","RATE","AMOUNT"]
[]
[null,"SECTION NO. 1 "]
[]
[null,"BILL NO. 1 "]
[]
[null,"PRELIMINARIES "]
[]
[null,"Satety, Environmental and Quality Requirements and Compliance for contract duration. (provide a break down list)","Sum",1,null,{"$f":"D9*E9","v":{"v":0,"d":"0.00"}}]
[]
[null,"CARRIED TO FINAL SUMMARY",{"$nulls":3},{"$f":"F9","v":{"v":0,"d":"0.00"}}]

{"sheet":"ESKOM AIR-CON SCHEDULE","index":3,"n_rows":571,"n_cols":9,"rows_kept":571,"hidden":true}
{"$rows_empty":51}
[{"$nulls":8},1]
{"$rows_empty":51}
[{"$nulls":8},2]
{"$rows_empty":51}
[{"$nulls":8},3]
{"$rows_empty":51}
[{"$nulls":8},4]
{"$rows_empty":51}
[{"$nulls":8},5]
{"$rows_empty":51}
[{"$nulls":8},6]
{"$rows_empty":51}
[{"$nulls":8},7]
{"$rows_empty":51}
[{"$nulls":8},8]
{"$rows_empty":51}
[{"$nulls":8},9]
{"$rows_empty":51}
[{"$nulls":8},10]
{"$rows_empty":50}
[{"$nulls":8},11]

{"sheet":"AIRCON BOQ","index":4,"n_rows":480,"n_cols":6,"rows_kept":480}
["Item",null,"Unit","Expected Qty","Rate ","Amount"]
[null,"SECTION 2: AIR-CONDITIONING"]
[]
[null,"The Tenderer is referred to the relevant clauses in the Model Preambles for Trades, to the Supplementary Preambles"]
[]
[null,"SUPPLEMENTARY PREAMBLES"]
[]
[null,"Refer to Eskom schedule of service maintenance of air conditioners and refrigeration to Eskom buildings and surrounding sites, attached "]
[]
[null,"Overtime work and normal work:"]
[]
[null,"The tenderers are advised that the following works may be done during normal working hours as well as after normal working hours. Tenderers must make due allowance for these working hours in the pricing as no claims will be entertained in this regard."]
[]
[null,"Detailed Report:"]
[]
[null,"Tenderers are to submit detailed Service Reports to the Service Manager after each Air-condition is serviced."]
[]
[null,"Rate Approvals:"]
[]
[null,"The tenderer is advised that any rate that is required for new work must include the following breakdown:"]
[]
[null,"Material, labour, plant, wastage, transport and profit."]
[]
[null,"Rate approvals must be authorised by the Service Manager prior to work being carried out."]
[]
[null,"SERVICE"]
[]
[null,"Domestic Air conditioning units"]
[]
[null,"The basic requirement listed below must be carried out quarterly or As and when required"]
[null,"Consisting of :-"]
[]
[null,"Wash coil"]
[null,"Wash filter"]
[null,"Check electrical connection"]
[null,"Check vibration"]
[null,"Clean unit operation"]
[null,"Check refrigerant charge"]
[null,"Check drain and drain pump operation "]
[null,"Blow out electrical control"]
[null,"Check for insulation damage"]
[]
[null,"CENTRAL AIR CONDITIONING SYSTEM"]
[]
[null,"Chillers - check the following basic requirements"]
[]
[null,"vibration on all components"]
[null,"noise on all components"]
[null,"corrosion"]
[null,"Refrigerant Charge"]
[null,"Refrigerant leaks"]
[null,"Oil leaks"]
[null,"Water leaks"]
[null,"Oil sample testing"]
[null,"HP pressure"]
[null,"LP pressure"]
[null,"Amps and voltage ( compressor, pumps, fan motors etc)"]
[null,"Loose electrical connections"]
[null,"Blow out electrical panel"]
[null,"Wash coil or clean shell and tube"]
[null,"Check operation of syaytem"]
[null,"Clean plant room"]
[]
[null,"Chlilers - Air Handling Units "]
[]
[null,"Check the following:"]
[]
[null,"vibration on all components"]
[null,"noise on all components"]
[null,"corrosion"]
[null,"Motors"]
[null,"Pulleys"]
[null,"V belts "]
[null,"Bearings"]
[null,"Humidifications system"]
[null,"Heater elements"]
[null,"Dampers"]
[null,"Drains"]
[null,"Filters"]
[null,"Door seal"]
[null,"Washing coils"]
[null,"Amps and voltage (fan motors etc)"]
[null,"Cleaning of plant room"]
[]
[null,"Servicing of Pumps"]
[]
[null,"Check the following:"]
[]
[null,"vibration on all components"]
[null,"noise on all components"]
[null,"corrosion"]
[null,"Couplings"]
[null,"Motor operation"]
[null,"Bearings"]
[null,"Lubrication method"]
[null,"Amps and voltage (motors etc)"]
[null,"Cleaning pump room"]
[]
[null,"Cooling Towers"]
[]
[null,"Check the following:"]
[]
[null,"Fan motor operation"]
[null,"Water treatment"]
[null,"Laminator"]
[null,"Regulating Valve"]
[null,"Check for cracks on the tower"]
[null,"Check for lose connection on electricals"]
[null,"Amps and voltage (motors etc)"]
[null,"vibration on all components"]
[null,"noise on all components"]
[null,"corrosion"]
[]
[null,"BMS / CONTROL"]
[null,"Check operation of BMS / Control"]
[]
[null,"Note: Lead times for any emergency call out shall be 2 hours from call out. Failure to respond with such time will result in NCR "]
[]
[null,"Generic list of Eskom Equipment for guidance purposes only"]
[]
[null,"Window Units"]
[null,"Consols"]
[null,"Split Units"]
[null,"Central Plants "]
[null,"Packge units"]
[null,"Ducted Splits Units"]
[null,"Data Room Aircons "]
[null,"Ice storage"]
[null,"Heat recovery"]
[null,"Water heat pumps"]
[null,"Extaction systems"]
[null,"Fresh air systems"]
[null,"Evaporative systems"]
[null,"Domestic Fridges"]
[null,"Commercial Cold Rooms and Freezer rooms"]
[null,"Kitchen Extraction and Supply systems"]
[null,"Ice machines"]
[null,"Under counter fridges"]
[null,"Ice tops"]
[null,"Water Treatment (Condenser water, chilled water, Glycol)"]
[null,"Spry trees"]
[]
[null,"SERVICING"]
[]
[]
[null,"Domestic Air conditioning units (Rate to cover a complete service per unit)"]
[]
["1","1kW to 12kW","Per service",1,null,{"$f":"D148*E148","v":0}]
[]
["2","12.1kW to 24kW","Per service",1,null,{"$f":"D150*E150","v":0}]
[]
[null,"SUPPLY AND INSTALL BACK TO BACK INSTALLATION COST"]
[]
[null,"Supply and install Back to Back installation cost including piping and communication cables ( Certification of confirmation to be handed over to the Service Manager)"]
[]
[null,"Carrier Midwall Standard R410A"]
[]
["1","3.5kW","No.",1,null,{"$f":"D158*E158","v":0}]
[]
["3","5kW","No.",1,null,0]
[]
["4","6kW","No.",1,null,{"$f":"D162*E162","v":0}]
[]
["5","7.1kW","No.",1,null,{"$f":"D164*E164","v":0}]
[]
["6","10kW","No.",1,null,{"$f":"D166*E166","v":0}]
[]
["7","14kW","No.",1,null,{"$f":"D168*E168","v":0}]
[]
[null,"Carrier Casette Standard R410A"]
[]
["8","3.5kW","No.",1,null,{"$f":"D172*E172","v":0}]
[]
["9","5kW","No.",1,null,{"$f":"D174*E174","v":0}]
[]
["10","6kW","No.",1,null,{"$f":"D176*E176","v":0}]
[]
["11","7.1kW","No.",1,null,{"$f":"D178*E178","v":0}]
[]
["12","10kW","No.",1,null,{"$f":"D180*E180","v":0}]
[]
["13","14kW"]
[]
[null,"Carrier Under Ceiling Standard R410A"]
[]
["14","3.5kW","No.",1,null,{"$f":"D186*E186","v":0}]
[]
["15","5kW","No.",1,null,{"$f":"D188*E188","v":0}]
[]
["16","6kW","No.",1,null,{"$f":"D190*E190","v":0}]
[]
["17","7.1kW","No.",1,null,{"$f":"D192*E192","v":0}]
[]
["18","10kW","No.",1,null,{"$f":"D194*E194","v":0}]
[]
["19","14kW","No",1,null,{"$f":"D196*E196","v":0}]
[]
[null,"Carrier Midwall Inventer R410A"]
[]
["20","3.5kW","No.",1,null,{"$f":"D200*E200","v":0}]
[]
["21","5kW","No.",1,null,{"$f":"D202*E202","v":0}]
[]
["22","6kW","No.",1,null,{"$f":"D204*E204","v":0}]
[]
["23","7.1kW","No.",1,null,{"$f":"D206*E206","v":0}]
[]
["23","10kW","No.",1,null,{"$f":"D208*E208","v":0}]
[]
["24","14kW","No.",1,null,{"$f":"D210*E210","v":0}]
[]
[null,"Carrier Casette Inventer R410A"]
[]
["25","3.5kW","No.",1,null,{"$f":"D214*E214","v":0}]
[]
["26","5kW","No.",1,null,{"$f":"D216*E216","v":0}]
[]
["27","6kW","No.",1,null,{"$f":"D218*E218","v":0}]
[]
["28","7.1kW","No.",1,null,{"$f":"D220*E220","v":0}]
[]
["29","10kW","No.",1,null,{"$f":"D222*E222","v":0}]
[]
["30","14kW"]
[]
[null,"Carrier Under Ceiling Inventer R410A"]
[]
["31","3.5kW","No.",1,null,{"$f":"D228*E228","v":0}]
[]
["32","5kW","No.",1,null,{"$f":"D230*E230","v":0}]
[]
["33","6kW","No.",1,null,{"$f":"D232*E232","v":0}]
[]
["34","7.1kW","No.",1,null,{"$f":"D234*E234","v":0}]
[]
["35","10kW","No.",1,null,{"$f":"D236*E236","v":0}]
[]
["36","14kW","No",1,null,{"$f":"D238*E238","v":0}]
[]
[]
[null,"Defy Console Standard R410A"]
[]
["37","3.5kW","No.",1,null,{"$f":"D243*E243","v":0}]
[]
["38","5kW","No.",1,null,{"$f":"D245*E245","v":0}]
[]
["39","6kW","No.",1,null,{"$f":"D247*E247","v":0}]
[]
["40","7.1kW","No.",1,null,{"$f":"D249*E249","v":0}]
[]
["41","10kW","No.",1,null,{"$f":"D251*E251","v":0}]
[]
["42","14kW"]
[]
[null,"Defy Console Inventer R410A"]
[]
["43","3.5kW","No.",1,null,{"$f":"D257*E257","v":0}]
[]
["44","5kW","No.",1,null,{"$f":"D259*E259","v":0}]
[]
["45","6kW","No.",1,null,{"$f":"D261*E261","v":0}]
[]
["46","7.1kW","No.",1,null,{"$f":"D263*E263","v":0}]
[]
["47","10kW","No.",1,null,{"$f":"D265*E265","v":0}]
[]
["48","14kW"]
[]
[null,"Mitsubishi inverter R410A"]
[]
["49","3.5kW","No.",1,null,{"$f":"D271*E271","v":0}]
[]
["50","5kW","No.",1,null,{"$f":"D273*E273","v":0}]
[]
["51","6kW","No.",1,null,{"$f":"D275*E275","v":0}]
[]
["52","7.1kW","No.",1,null,{"$f":"D277*E277","v":0}]
[]
["53","10kW","No.",1,null,{"$f":"D279*E279","v":0}]
[]
["54","14kW"]
[]
[null,"Daikin Standard Midwall R410A"]
[]
["55","3.5kW","No.",1,null,{"$f":"D285*E285","v":0}]
[]
["56","5kW","No.",1,null,{"$f":"D287*E287","v":0}]
[]
["57","6kW","No.",1,null,{"$f":"D289*E289","v":0}]
[]
["58","7.1kW","No.",1,null,{"$f":"D291*E291","v":0}]
[]
["59","10kW","No.",1,null,{"$f":"D293*E293","v":0}]
[]
["60","14kW","No.",1,null,{"$f":"D295*E295","v":0}]
[]
[null,"Daikin Inventer Midwall R410A"]
[]
["61","3.5kW","No.",1,null,{"$f":"D299*E299","v":0}]
[]
["62","5kW","No.",1,null,{"$f":"D301*E301","v":0}]
[]
["63","6kW","No.",1,null,{"$f":"D303*E303","v":0}]
[]
["64","7.1kW","No.",1,null,{"$f":"D305*E305","v":0}]
[]
["65","10kW","No.",1,null,{"$f":"D307*E307","v":0}]
[]
["66","14kW","No.",1,null,{"$f":"D309*E309","v":0}]
[]
[null,"Daikin Standard Under ceiling R410A"]
[]
["67","3.5kW","No.",1,null,{"$f":"D313*E313","v":0}]
[]
["68","5kW","No.",1,null,{"$f":"D315*E315","v":0}]
[]
["69","6kW","No.",1,null,{"$f":"D317*E317","v":0}]
[]
["70","7.1kW","No.",1,null,{"$f":"D319*E319","v":0}]
[]
["71","10kW","No.",1,null,{"$f":"D321*E321","v":0}]
[]
["72","14kW"]
[]
[null,"Daikin Inventer Under ceiling R410A"]
[]
["73","3.5kW","No.",1,null,{"$f":"D327*E327","v":0}]
[]
["74","5kW","No.",1,null,{"$f":"D329*E329","v":0}]
[]
["75","6kW","No.",1,null,{"$f":"D331*E331","v":0}]
[]
["76","7.1kW","No.",1,null,{"$f":"D333*E333","v":0}]
[]
["77","10kW","No.",1,null,{"$f":"D335*E335","v":0}]
[]
["78","14kW","No.",1,null,{"$f":"D337*E337","v":0}]
[]
[null,"Dunham-Bush Midwall Standard R410A"]
[]
["79","3.5kW","No.",1,null,{"$f":"D341*E341","v":0}]
[]
["80","5kW","No.",1,null,{"$f":"D343*E343","v":0}]
[]
["81","6kW","No.",1,null,{"$f":"D345*E345","v":0}]
[]
["82","7.1kW","No.",1,null,{"$f":"D347*E347","v":0}]
[]
["83","10kW","No.",1,null,{"$f":"D349*E349","v":0}]
[]
["84","14kW","No.",1,null,{"$f":"D351*E351","v":0}]
[]
[null,"Dunham-Bush Under ceiling Standard R410A"]
[]
["85","3.5kW","No.",1,null,{"$f":"D355*E355","v":0}]
[]
["86","5kW","No.",1,null,{"$f":"D357*E357","v":0}]
[]
["87","6kW","No.",1,null,{"$f":"D359*E359","v":0}]
[]
["88","7.1kW","No.",1,null,{"$f":"D361*E361","v":0}]
[]
["89","10kW","No.",1,null,{"$f":"D363*E363","v":0}]
[]
["90","14kW","No.",1,null,{"$f":"D365*E365","v":0}]
[]
[null,"Dunham-Bush Midwall Inventer R410A"]
[]
["91","3.5kW","No.",1,null,{"$f":"D369*E369","v":0}]
[]
["92","5kW","No.",1,null,{"$f":"D371*E371","v":0}]
[]
["93","6kW","No.",1,null,{"$f":"D373*E373","v":0}]
[]
["94","7.1kW","No.",1,null,{"$f":"D375*E375","v":0}]
[]
["96","10kW","No.",1,null,{"$f":"D377*E377","v":0}]
[]
["97","14kW","No.",1,null,{"$f":"D379*E379","v":0}]
[]
[null,"Dunham-Bush Under ceiling Inventer R410A"]
[]
["98","3.5kW","No.",1,null,{"$f":"D383*E383","v":0}]
[]
["99","5kW","No.",1,null,{"$f":"D385*E385","v":0}]
[]
["100","6kW","No.",1,null,{"$f":"D387*E387","v":0}]
[]
["101","7.1kW","No.",1,null,{"$f":"D389*E389","v":0}]
[]
["103","10kW","No.",1,null,{"$f":"D391*E391","v":0}]
[]
["104","14kW","No.",1,null,{"$f":"D393*E393","v":0}]
[]
[null,"REMOVAL"]
[]
[null,"Removal of indoor and ourdoor unit including piping and communication cables(Refregirant must be reclaimed- disposal certificate to be sent to the Service Manager."]
[]
["1","1kW to 12kW","No.",1,null,{"$f":"D399*E399","v":0}]
[]
["2","12.1kW to 24kW","No.",1,null,{"$f":"D401*E401","v":0}]
[]
[null,"Additional material and labour"]
[]
["1","Galvinized trucking (75mm x 75mm (per length)","m",1,null,{"$f":"D405*E405","v":0}]
[]
["2","P.V.C Trunking White (100mm x 40mm (per length)","m",1,null,{"$f":"D407*E407","v":0}]
[]
["3","¼ “ copper pipe c/w insulation (p/m)  - R410A","m",1,null,{"$f":"D409*E409","v":0}]
[]
["4","3/8 “ copper pipe c/w insulation (p/m)  - R410A","m",1,null,{"$f":"D411*E411","v":0}]
[]
["5","½ “ copper pipe c/w insulation (p/m)  - R410A","m",1,null,{"$f":"D413*E413","v":0}]
[]
["6","5/8 “ copper pipe c/w insulation (p/m)  - R410A","m",1,null,{"$f":"D415*E415","v":0}]
[]
["7","¾ “ copper pipe c/w insulation (p/m)  - R410A","m",1,null,{"$f":"D417*E417","v":0}]
[]
["8","Nosk Cable 2.5mm (p/m) - 2 plus earth","m",1,null,{"$f":"D419*E419","v":0}]
[]
["9","20mm PVC Drain Pipe (p/m)","m",1,null,{"$f":"D421*E421","v":0}]
[]
["10","25mm PVC Drain Pipe (p/m)","m",1,null,{"$f":"D423*E423","v":0}]
[]
[null,"HOURLY RATE: GAUTENG"]
[null,"The tenderer is advised that the following items are Labour Rates for items not covered in this Pricelist."]
[]
[null,"Tenderers are advised that all labour charges and transport charges must be procured from the closest to the effected site."]
[]
[null,"Any call out work commenced during working hours and completed after normal working hours will be compensated by using normal working hour rates only."]
[]
[null,"Any call out work commenced after normal working hours will be compensated by using after normal working hour rates only."]
[]
[null,"Prior written approval must be received from the Service Manager prior to commencement of work."]
[]
[null,"HOURLY RATE: GAUTENG"]
[null,"The tenderer is advised that the following items are Labour Rates for items not covered in this Bills of Quantities."]
[]
[null,"Tenderers are advised that all labour charges and transport charges must be procured from the closest to the effected site."]
[]
[null,"Any call out work commenced during working hours and completed after normal working hours will be compensated by using normal working hour rates only."]
[]
[null,"Any call out work commenced after normal working hours will be compensated by using after normal working hour rates only."]
[]
[null,"Prior written approval must be received from the Service Manager prior to commencement of work."]
[]
[null,"Work to be done from Monday to Friday between 7:30am and 4pm:"]
[]
["1","Supervisor","Hr",1,null,{"$f":"D449*E449","v":0}]
[]
["2","Mechanical Artisan","Hr",1,null,{"$f":"D451*E451","v":0}]
[]
["3","Artisan Assistant","Hr",1,null,{"$f":"D453*E453","v":0}]
[]
[null,"Work to be done after normal working hours and Saturdays"]
[]
["4","Supervisor","Hr",1,null,{"$f":"D457*E457","v":0}]
[]
["5","Mechanical Artisan","Hr",1,null,{"$f":"D459*E459","v":0}]
[]
["6","Artisan Assistant","Hr",1,null,{"$f":"D461*E461","v":0}]
[]
[null,"Work to be done on Sunday and Public Holidays"]
[]
["7","Supervisor","Hr",1,null,{"$f":"D465*E465","v":0}]
[]
["8","Mechanical Artisan","Hr",1,null,{"$f":"D467*E467","v":0}]
[]
["9","Artisan Assistant","Hr",1,null,{"$f":"D469*E469","v":0}]
[]
[null,"Materials"]
["10","All and any other materials used that is not allowed for in the BOQ shall be re-imbursed at cost plus material handling fee (Percentage Mark-Up).  Actual invoices shall be submitted to Service Manager."]
[]
["11","Percentage Mark Up =                    ","%"]
[]
[null,"Transport"]
[]
["12","Payment for transport/traveling ( will be paid in excess of a 50Km from CLN depot to a specific site)","Km",1,null,{"$f":"D478*E478","v":0}]
[]
[null,"Total carried to Summary",{"$nulls":3},{"$f":"SUM(F146:F478)","v":0}]

{"sheet":"NEC3 CONTRACT","index":5,"n_rows":0,"n_cols":0,"rows_kept":0,"hidden":true}